[Event "2. Itzehoer Schach Open"]
[Site "Itzehoe, Germany"]
[Date "2023.04.30"]
[Round "3.4"]
[White "Nahnsen, Kenneth"]
[Black "Knuedel, Torben"]
[Result "1-0"]
[TimeControl "90 min / 40 Züge + 30 min + 30 Sek pro Zug"]
[WhiteElo "2021"]
[BlackElo "2250"]

1. d4 {[%clk 01:30:58]} {[%emt 00:00:01]} Nf6 {[%clk 01:24:54]} {[%emt
00:06:07]} 2. c4 {[%clk 01:31:21]} {[%emt 00:00:07]} e6 {[%clk 01:25:20]}
{[%emt 00:00:03]} 3. g3 {[%clk 01:31:47]} {[%emt 00:00:04]} d5 {[%clk
01:25:46]} {[%emt 00:00:05]} 4. Bg2 {[%clk 01:32:10]} {[%emt 00:00:07]} Be7
{[%clk 01:26:12]} {[%emt 00:00:04]} 5. Nf3 {[%clk 01:32:36]} {[%emt 00:00:04]}
O-O {[%clk 01:26:38]} {[%emt 00:00:04]} 6. O-O {[%clk 01:33:01]} {[%emt
00:00:05]} dxc4 {[%clk 01:27:06]} {[%emt 00:00:02]} 7. Qc2 {[%clk 01:33:23]}
{[%emt 00:00:08]} a6 {[%clk 01:27:32]} {[%emt 00:00:04]} 8. a4 {[%clk
01:33:49]} {[%emt 00:00:04]} Bd7 {[%clk 01:27:58]} {[%emt 00:00:04]} 9. Qxc4
{[%clk 01:34:14]} {[%emt 00:00:05]} Bc6 {[%clk 01:28:25]} {[%emt 00:00:03]} 10.
Bf4 {[%clk 01:34:37]} {[%emt 00:00:06]} Bd6 {[%clk 01:27:08]} {[%emt 00:01:47]}
11. Nc3 {[%clk 01:35:02]} {[%emt 00:00:05]} Bxf4 {[%clk 01:23:40]} {[%emt
00:03:59]} 12. gxf4 {[%clk 01:35:26]} {[%emt 00:00:05]} Nbd7 {[%clk 01:23:29]}
{[%emt 00:00:40]} 13. e3 {[%clk 01:34:14]} {[%emt 00:01:42]} Nb6 {[%clk
01:21:08]} {[%emt 00:02:52]} 14. Qe2 {[%clk 01:30:39]} {[%emt 00:04:05]} Qe7
{[%clk 01:12:28]} {[%emt 00:09:11]} 15. Kh1 {[%clk 01:22:24]} {[%emt 00:08:45]}
Qb4 {[%clk 01:09:31]} {[%emt 00:03:26]} 16. Rg1 {[%clk 01:20:59]} {[%emt
00:01:55]} Nxa4 {[%clk 00:58:08]} {[%emt 00:11:54]} 17. Nxa4 {[%clk 01:19:30]}
{[%emt 00:01:59]} Bxa4 {[%clk 00:58:22]} {[%emt 00:00:16]} 18. Ne5 {[%clk
01:19:46]} {[%emt 00:00:14]} Rad8 {[%clk 00:44:53]} {[%emt 00:13:58]} 19. Qe1
{[%clk 01:00:40]} {[%emt 00:19:35]} Qxe1 {[%clk 00:32:33]} {[%emt 00:12:51]} 20.
Rgxe1 {[%clk 01:01:07]} {[%emt 00:00:02]} Be8 {[%clk 00:31:58]} {[%emt
00:01:04]} 21. Bxb7 {[%clk 00:59:37]} {[%emt 00:02:01]} Rb8 {[%clk 00:31:41]}
{[%emt 00:00:47]} 22. Bxa6 {[%clk 01:00:01]} {[%emt 00:00:06]} Rxb2 {[%clk
00:32:02]} {[%emt 00:00:08]} 23. Re2 {[%clk 00:59:46]} {[%emt 00:00:45]} Rxe2
{[%clk 00:30:35]} {[%emt 00:01:58]} 24. Bxe2 {[%clk 01:00:09]} {[%emt
00:00:07]} Nd5 {[%clk 00:21:59]} {[%emt 00:09:06]} 25. Bf3 {[%clk 00:58:35]}
{[%emt 00:02:04]} Bb5 {[%clk 00:20:20]} {[%emt 00:02:09]} 26. Rc1 {[%clk
00:56:07]} {[%emt 00:02:58]} f6 {[%clk 00:18:54]} {[%emt 00:01:56]} 27. Nc6
{[%clk 00:51:30]} {[%emt 00:05:06]} Kf7 {[%clk 00:14:28]} {[%emt 00:04:56]} 28.
Na7 {[%clk 00:48:15]} {[%emt 00:03:45]} Bd3 {[%clk 00:14:53]} {[%emt 00:00:05]}
29. Bxd5 {[%clk 00:48:36]} {[%emt 00:00:10]} exd5 {[%clk 00:15:20]} {[%emt
00:00:03]} 30. Rxc7+ {[%clk 00:48:58]} {[%emt 00:00:07]} Kg6 {[%clk 00:15:44]}
{[%emt 00:00:06]} 31. Kg2 {[%clk 00:49:14]} {[%emt 00:00:13]} Rb8 {[%clk
00:13:25]} {[%emt 00:02:50]} 32. Rc3 {[%clk 00:46:47]} {[%emt 00:02:57]} Be4+
{[%clk 00:10:40]} {[%emt 00:03:15]} 33. f3 {[%clk 00:46:46]} {[%emt 00:00:31]}
Rb2+ {[%clk 00:11:06]} {[%emt 00:00:05]} 34. Kg3 {[%clk 00:46:59]} {[%emt
00:00:16]} Bb1 {[%clk 00:10:41]} {[%emt 00:00:55]} 35. Nc8 {[%clk 00:44:07]}
{[%emt 00:03:23]} Ba2 {[%clk 00:08:36]} {[%emt 00:02:35]} 36. Ne7+ {[%clk
00:43:37]} {[%emt 00:01:00]} Kh6 {[%clk 00:05:20]} {[%emt 00:03:46]} 37. e4
{[%clk 00:32:38]} {[%emt 00:11:29]} Rb7 {[%clk 00:05:35]} {[%emt 00:00:15]} 38.
Nf5+ {[%clk 00:23:57]} {[%emt 00:09:11]} Kg6 {[%clk 00:05:58]} {[%emt
00:00:07]} 39. Ne3 {[%clk 00:21:05]} {[%emt 00:03:21]} Rb4 {[%clk 00:04:28]}
{[%emt 00:02:01]} 40. f5+ {[%clk 00:20:52]} {[%emt 00:00:43]} Kf7 {[%clk
00:03:12]} {[%emt 00:01:45]} 41. Rc7+ {[%clk 00:19:07]} {[%emt 00:02:14]} Kf8
{[%clk 00:01:47]} {[%emt 00:01:55]} 42. Rc2 {[%clk 00:09:59]} {[%emt 00:09:38]}
Bb3 {[%clk 00:27:04]} {[%emt 00:05:14]} 43. Rb2 {[%clk 00:33:53]} {[%emt
00:06:36]} dxe4 {[%clk 00:26:01]} {[%emt 00:01:33]} 44. fxe4 {[%clk 00:34:02]}
{[%emt 00:00:20]} Rxd4 {[%clk 00:25:34]} {[%emt 00:00:57]} 45. Rxb3 {[%clk
00:34:25]} {[%emt 00:00:07]} Rxe4 {[%clk 00:26:01]} {[%emt 00:00:03]} 46. Kf3
{[%clk 00:32:22]} {[%emt 00:02:33]} Rh4 {[%clk 00:26:19]} {[%emt 00:00:12]} 47.
Rb8+ {[%clk 00:30:22]} {[%emt 00:02:29]} Kf7 {[%clk 00:26:08]} {[%emt
00:00:41]} 48. Rb7+ {[%clk 00:30:51]} {[%emt 00:00:02]} Kf8 {[%clk 00:26:31]}
{[%emt 00:00:06]} 49. Kg3 {[%clk 00:31:13]} {[%emt 00:00:08]} Re4 {[%clk
00:26:24]} {[%emt 00:00:38]} 50. Nd5 {[%clk 00:29:56]} {[%emt 00:01:47]} Re5
{[%clk 00:18:46]} {[%emt 00:08:07]} 51. Nf4 {[%clk 00:27:46]} {[%emt 00:02:40]}
Rxf5 {[%clk 00:18:49]} {[%emt 00:00:27]} 52. Ne6+ {[%clk 00:28:09]} {[%emt
00:00:07]} Kg8 {[%clk 00:19:16]} {[%emt 00:00:04]} 53. Rxg7+ {[%clk 00:28:23]}
{[%emt 00:00:15]} Kh8 {[%clk 00:19:42]} {[%emt 00:00:04]} 54. Rf7 {[%clk
00:27:53]} {[%emt 00:01:01]} h5 {[%clk 00:19:35]} {[%emt 00:00:37]} 55. Nf4
{[%clk 00:26:53]} {[%emt 00:01:29]} Kg8 {[%clk 00:19:23]} {[%emt 00:00:43]} 56.
Ra7 {[%clk 00:27:17]} {[%emt 00:00:06]} Rg5+ {[%clk 00:19:25]} {[%emt
00:00:28]} 57. Kf3 {[%clk 00:27:24]} {[%emt 00:00:23]} Rf5 {[%clk 00:18:41]}
{[%emt 00:01:14]} 58. Rd7 {[%clk 00:27:32]} {[%emt 00:00:21]} Ra5 {[%clk
00:16:28]} {[%emt 00:02:43]} 59. Rd5 {[%clk 00:27:21]} {[%emt 00:00:41]} Ra3+
{[%clk 00:16:46]} {[%emt 00:00:13]} 60. Ke4 {[%clk 00:27:49]} {[%emt 00:00:02]}
h4 {[%clk 00:16:47]} {[%emt 00:00:29]} 61. Kf5 {[%clk 00:23:13]} {[%emt
00:05:06]} h3 {[%clk 00:12:50]} {[%emt 00:04:27]} 62. Rd3 {[%clk 00:22:43]}
{[%emt 00:00:59]} Ra5+ {[%clk 00:11:43]} {[%emt 00:01:38]} 63. Kxf6 {[%clk
00:22:52]} {[%emt 00:00:20]} Ra6+ {[%clk 00:12:10]} {[%emt 00:00:04]} 64. Ne6
{[%clk 00:23:07]} {[%emt 00:00:14]} Ra4 {[%clk 00:12:32]} {[%emt 00:00:07]} 65.
Rd8+ {[%clk 00:23:04]} {[%emt 00:00:35]} 1-0

[Event "2. Itzehoer Schach Open"]
[Site "Itzehoe, Germany"]
[Date "2023.04.30"]
[Round "3.20"]
[White "Fuhrmann, Jeppe"]
[Black "Quiring, Nikolai"]
[Result "0-1"]
[TimeControl "90 min / 40 Züge + 30 min + 30 Sek pro Zug"]
[WhiteElo "1379"]
[BlackElo "1880"]

1. e4 {[%clk 01:30:58]} {[%emt 00:00:01]} e6 {[%clk 01:30:55]} {[%emt
00:00:05]} 2. d4 {[%clk 01:31:22]} {[%emt 00:00:07]} d5 {[%clk 01:31:20]}
{[%emt 00:00:05]} 3. e5 {[%clk 01:31:32]} {[%emt 00:00:19]} c5 {[%clk
01:31:41]} {[%emt 00:00:09]} 4. c3 {[%clk 01:30:02]} {[%emt 00:02:00]} Nc6
{[%clk 01:32:04]} {[%emt 00:00:07]} 5. Nf3 {[%clk 01:30:10]} {[%emt 00:00:22]}
Nge7 {[%clk 01:32:23]} {[%emt 00:00:11]} 6. Na3 {[%clk 01:29:04]} {[%emt
00:01:37]} cxd4 {[%clk 01:32:03]} {[%emt 00:00:49]} 7. cxd4 {[%clk 01:28:42]}
{[%emt 00:00:52]} Nf5 {[%clk 01:32:25]} {[%emt 00:00:08]} 8. Nc2 {[%clk
01:28:38]} {[%emt 00:00:35]} Qb6 {[%clk 01:30:51]} {[%emt 00:02:03]} 9. a3
{[%clk 01:26:55]} {[%emt 00:02:13]} a5 {[%clk 01:30:46]} {[%emt 00:00:35]} 10.
Be2 {[%clk 01:23:24]} {[%emt 00:04:01]} Be7 {[%clk 01:30:56]} {[%emt 00:00:20]}
11. O-O {[%clk 01:23:05]} {[%emt 00:00:49]} O-O {[%clk 01:31:00]} {[%emt
00:00:26]} 12. Rb1 {[%clk 01:18:09]} {[%emt 00:05:25]} Kh8 {[%clk 01:27:09]}
{[%emt 00:04:22]} 13. Qd2 {[%clk 01:11:45]} {[%emt 00:06:55]} Bd7 {[%clk
01:24:34]} {[%emt 00:03:04]} 14. Rd1 {[%clk 01:05:25]} {[%emt 00:06:50]} f6
{[%clk 01:23:40]} {[%emt 00:01:23]} 15. Ne3 {[%clk 01:01:40]} {[%emt 00:04:16]}
fxe5 {[%clk 01:22:23]} {[%emt 00:01:47]} 16. dxe5 {[%clk 01:01:46]} {[%emt
00:00:25]} Nxe3 {[%clk 01:19:50]} {[%emt 00:03:02]} 17. Qxe3 {[%clk 01:01:56]}
{[%emt 00:00:20]} Bc5 {[%clk 01:19:09]} {[%emt 00:01:11]} 18. Qc3 {[%clk
00:55:50]} {[%emt 00:06:36]} Bxf2+ {[%clk 01:17:36]} {[%emt 00:02:03]} 19. Kh1
{[%clk 00:56:16]} {[%emt 00:00:04]} Rac8 {[%clk 01:15:20]} {[%emt 00:02:46]} 20.
Qd3 {[%clk 00:54:52]} {[%emt 00:01:55]} Rf5 {[%clk 01:13:54]} {[%emt 00:01:55]}
21. b3 {[%clk 00:48:21]} {[%emt 00:07:01]} Nxe5 {[%clk 01:10:51]} {[%emt
00:03:32]} 22. Qd2 {[%clk 00:47:04]} {[%emt 00:01:47]} Ng4 {[%clk 01:05:57]}
{[%emt 00:05:22]} 23. Nd4 {[%clk 00:43:02]} {[%emt 00:04:35]} Be3 {[%clk
01:05:31]} {[%emt 00:00:55]} 0-1

[Event "2. Itzehoer Schach Open"]
[Site "Itzehoe, Germany"]
[Date "2023.04.30"]
[Round "3.24"]
[White "Ploog, Jakob"]
[Black "Krumschmidt, Michael"]
[Result "1-0"]
[TimeControl "90 min / 40 Züge + 30 min + 30 Sek pro Zug"]
[WhiteElo "1392"]
[BlackElo "1720"]

1. e4 {[%clk 01:28:43]} {[%emt 00:02:15]} c5 {[%clk 01:30:43]} {[%emt
00:00:16]} 2. Nf3 {[%clk 01:28:32]} {[%emt 00:00:42]} d6 {[%clk 01:26:08]}
{[%emt 00:05:06]} 3. d4 {[%clk 01:28:11]} {[%emt 00:00:51]} cxd4 {[%clk
01:26:29]} {[%emt 00:00:08]} 4. c3 {[%clk 01:25:47]} {[%emt 00:02:55]} Nf6
{[%clk 01:24:09]} {[%emt 00:02:49]} 5. Bd3 {[%clk 01:25:31]} {[%emt 00:00:46]}
Nc6 {[%clk 01:21:22]} {[%emt 00:03:18]} 6. cxd4 {[%clk 01:25:19]} {[%emt
00:00:43]} Bg4 {[%clk 01:20:22]} {[%emt 00:01:29]} 7. Be3 {[%clk 01:24:36]}
{[%emt 00:01:12]} Qa5+ {[%clk 01:18:02]} {[%emt 00:02:50]} 8. Bd2 {[%clk
01:16:26]} {[%emt 00:08:41]} Qb6 {[%clk 01:13:43]} {[%emt 00:04:49]} 9. d5
{[%clk 01:11:49]} {[%emt 00:05:06]} Ne5 {[%clk 01:12:54]} {[%emt 00:01:20]} 10.
Bc3 {[%clk 01:08:38]} {[%emt 00:03:42]} Nfd7 {[%clk 01:03:10]} {[%emt
00:10:13]} 11. Be2 {[%clk 01:05:55]} {[%emt 00:03:13]} e6 {[%clk 00:50:21]}
{[%emt 00:13:19]} 12. Nxe5 {[%clk 01:01:09]} {[%emt 00:05:17]} Bxe2 {[%clk
00:50:17]} {[%emt 00:00:33]} 13. Nxd7 {[%clk 01:01:16]} {[%emt 00:00:23]} 1-0

[Event "2. Itzehoer Schach Open"]
[Site "Itzehoe, Germany"]
[Date "2023.04.30"]
[Round "3.12"]
[White "Kosanke, Stefan"]
[Black "Spieker, Hans-Joachim"]
[Result "1-0"]
[TimeControl "90 min / 40 Züge + 30 min + 30 Sek pro Zug"]
[WhiteElo "1933"]
[BlackElo "1747"]

1. Nf3 {[%clk 01:30:56]} {[%emt 00:00:03]} Nf6 {[%clk 01:30:51]} {[%emt
00:00:10]} 2. c4 {[%clk 01:31:08]} {[%emt 00:00:18]} g6 {[%clk 01:31:06]}
{[%emt 00:00:15]} 3. Nc3 {[%clk 01:31:05]} {[%emt 00:00:34]} c5 {[%clk
01:30:02]} {[%emt 00:01:33]} 4. g3 {[%clk 01:31:16]} {[%emt 00:00:19]} b6
{[%clk 01:30:23]} {[%emt 00:00:09]} 5. Bg2 {[%clk 01:31:13]} {[%emt 00:00:33]}
Bb7 {[%clk 01:30:51]} {[%emt 00:00:02]} 6. O-O {[%clk 01:31:27]} {[%emt
00:00:15]} Bg7 {[%clk 01:31:19]} {[%emt 00:00:02]} 7. d3 {[%clk 01:31:20]}
{[%emt 00:00:38]} O-O {[%clk 01:30:30]} {[%emt 00:01:19]} 8. Bf4 {[%clk
01:27:01]} {[%emt 00:04:49]} d6 {[%clk 01:27:36]} {[%emt 00:03:24]} 9. Qd2
{[%clk 01:22:48]} {[%emt 00:04:44]} Re8 {[%clk 01:21:30]} {[%emt 00:06:36]} 10.
e4 {[%clk 01:22:20]} {[%emt 00:00:58]} Nc6 {[%clk 01:16:33]} {[%emt 00:05:27]}
11. Rae1 {[%clk 01:15:22]} {[%emt 00:07:27]} Nd4 {[%clk 01:14:03]} {[%emt
00:03:00]} 12. Nxd4 {[%clk 01:09:25]} {[%emt 00:06:27]} cxd4 {[%clk 01:14:31]}
{[%emt 00:00:02]} 13. Nd5 {[%clk 01:06:20]} {[%emt 00:03:36]} e5 {[%clk
01:10:32]} {[%emt 00:04:28]} 14. Bg5 {[%clk 01:05:26]} {[%emt 00:01:24]} Bxd5
{[%emt 00:00:11]} 15. cxd5 {[%clk 01:05:10]} {[%emt 00:00:42]} Qd7 {[%clk
01:02:57]} {[%emt 00:08:27]} 16. f4 {[%clk 00:59:13]} {[%emt 00:06:27]} Rac8
{[%clk 00:57:59]} {[%emt 00:05:28]} 17. f5 {[%clk 00:53:22]} {[%emt 00:06:21]}
gxf5 {[%clk 00:57:10]} {[%emt 00:01:18]} 18. Rxf5 {[%clk 00:53:23]} {[%emt
00:00:30]} Nxd5 {[%clk 00:55:55]} {[%emt 00:01:45]} 19. Ref1 {[%clk 00:49:07]}
{[%emt 00:04:46]} Ne3 {[%clk 00:48:36]} {[%emt 00:07:49]} 20. Bxe3 {[%clk
00:46:53]} {[%emt 00:02:43]} dxe3 {[%clk 00:49:04]} {[%emt 00:00:02]} 21. Qxe3
{[%clk 00:46:10]} {[%emt 00:01:13]} f6 {[%clk 00:45:18]} {[%emt 00:04:15]} 22.
Qf3 {[%clk 00:41:38]} {[%emt 00:05:03]} Rf8 {[%clk 00:41:07]} {[%emt 00:04:41]}
23. g4 {[%clk 00:41:18]} {[%emt 00:00:50]} Qe7 {[%clk 00:40:49]} {[%emt
00:00:47]} 24. Qd1 {[%clk 00:33:38]} {[%emt 00:08:11]} Qc7 {[%clk 00:40:20]}
{[%emt 00:00:59]} 25. Rh5 {[%clk 00:25:30]} {[%emt 00:08:38]} Qc5+ {[%clk
00:36:26]} {[%emt 00:04:24]} 26. Kh1 {[%clk 00:25:48]} {[%emt 00:00:13]} Qe3
{[%clk 00:36:02]} {[%emt 00:00:53]} 27. Qb3+ {[%clk 00:21:58]} {[%emt
00:04:20]} Kh8 {[%clk 00:36:06]} {[%emt 00:00:27]} 28. Rh3 {[%clk 00:16:47]}
{[%emt 00:05:40]} Qd2 {[%clk 00:35:00]} {[%emt 00:01:36]} 29. Rhf3 {[%clk
00:13:24]} {[%emt 00:03:53]} Rc1 {[%clk 00:34:01]} {[%emt 00:01:29]} 30. Rxc1
{[%clk 00:13:09]} {[%emt 00:00:45]} Qxc1+ {[%clk 00:34:29]} {[%emt 00:00:02]}
31. Rf1 {[%clk 00:13:29]} {[%emt 00:00:10]} Qc5 {[%clk 00:25:23]} {[%emt
00:09:36]} 32. h4 {[%clk 00:11:03]} {[%emt 00:02:56]} Qe3 {[%clk 00:24:09]}
{[%emt 00:01:43]} 33. Kh2 {[%clk 00:07:18]} {[%emt 00:04:15]} Bh6 {[%clk
00:23:00]} {[%emt 00:01:40]} 34. Rf3 {[%clk 00:05:30]} {[%emt 00:02:18]} Bf4+
{[%clk 00:22:30]} {[%emt 00:01:00]} 35. Kh3 {[%clk 00:05:34]} {[%emt 00:00:25]}
Qc5 {[%clk 00:21:27]} {[%emt 00:01:34]} 36. Qe6 {[%clk 00:05:33]} {[%emt
00:00:31]} Qc7 {[%clk 00:21:04]} {[%emt 00:00:53]} 37. d4 {[%clk 00:03:49]}
{[%emt 00:02:15]} Kg7 {[%clk 00:19:16]} {[%emt 00:02:16]} 38. Rc3 {[%clk
00:04:08]} {[%emt 00:00:12]} Qd8 {[%clk 00:16:25]} {[%emt 00:03:21]} 39. d5
{[%clk 00:03:56]} {[%emt 00:00:42]} Rf7 {[%clk 00:16:16]} {[%emt 00:00:39]} 40.
Rc6 {[%clk 00:02:57]} {[%emt 00:01:29]} Rd7 {[%clk 00:15:55]} {[%emt 00:00:51]}
41. Bf3 {[%clk 00:02:27]} {[%emt 00:01:00]} Be3 {[%clk 00:15:01]} {[%emt
00:01:25]} 42. b4 {[%clk 00:01:04]} {[%emt 00:01:52]} a5 {[%clk 00:14:07]}
{[%emt 00:01:24]} 43. a3 {[%clk 00:01:13]} {[%emt 00:00:22]} axb4 {[%clk
00:14:32]} {[%emt 00:00:05]} 44. axb4 {[%clk 00:01:42]} {[%emt 00:00:01]} Bd2
{[%clk 00:11:37]} {[%emt 00:03:24]} 45. g5 {[%clk 00:30:27]} {[%emt 00:01:45]}
fxg5 {[%clk 00:37:58]} {[%emt 00:04:09]} 46. hxg5 {[%clk 00:30:03]} {[%emt
00:00:54]} Bxg5 {[%clk 00:36:26]} {[%emt 00:02:01]} 47. Bg4 {[%clk 00:30:07]}
{[%emt 00:00:26]} Re7 {[%clk 00:36:08]} {[%emt 00:00:49]} 48. Qxd6 {[%clk
00:27:07]} {[%emt 00:03:31]} Qxd6 {[%clk 00:36:19]} {[%emt 00:00:18]} 49. Rxd6
{[%clk 00:27:28]} {[%emt 00:00:09]} Be3 {[%clk 00:35:20]} {[%emt 00:01:29]} 50.
Rc6 {[%clk 00:26:40]} {[%emt 00:01:18]} h6 {[%clk 00:30:16]} {[%emt 00:05:33]}
51. Bh5 {[%emt 00:06:14]} Ra7 {[%clk 00:26:43]} 52. d6 {[%clk 00:24:13]} {[%emt
00:01:17]} Ra2 {[%clk 00:24:39]} {[%emt 00:02:34]} 53. Kg4 {[%clk 00:22:33]}
{[%emt 00:02:10]} Kf6 {[%clk 00:22:35]} {[%emt 00:02:34]} 54. d7+ {[%clk
00:21:47]} {[%emt 00:01:16]} Ke7 {[%clk 00:22:56]} {[%emt 00:00:08]} 55. Be8
{[%clk 00:21:56]} {[%emt 00:00:21]} Rd2 {[%clk 00:21:31]} {[%emt 00:01:56]} 56.
Kf3 {[%clk 00:20:51]} {[%emt 00:01:35]} Bg1 {[%clk 00:20:48]} {[%emt 00:01:12]}
57. Rxh6 {[%clk 00:18:31]} {[%emt 00:02:50]} Rb2 {[%clk 00:20:41]} {[%emt
00:00:38]} 58. Rg6 {[%clk 00:17:15]} {[%emt 00:01:46]} Bd4 {[%clk 00:20:51]}
{[%emt 00:00:21]} 59. Rd6 {[%clk 00:16:18]} {[%emt 00:01:27]} Kd8 {[%clk
00:21:05]} {[%emt 00:00:15]} 60. Rc6 {[%clk 00:16:37]} {[%emt 00:00:11]} 1-0

[Event "2. Itzehoer Schach Open"]
[Site "Itzehoe, Germany"]
[Date "2023.04.30"]
[Round "3.26"]
[White "Trzcielinski, Jens"]
[Black "Eitel, Luc"]
[Result "1-0"]
[TimeControl "90 min / 40 Züge + 30 min + 30 Sek pro Zug"]
[WhiteElo "1693"]
[BlackElo "1383"]

1. e4 {[%clk 01:30:17]} {[%emt 00:00:42]} c5 {[%clk 01:30:56]} {[%emt
00:00:05]} 2. Nc3 {[%clk 01:30:30]} {[%emt 00:00:16]} d6 {[%clk 01:30:44]}
{[%emt 00:00:43]} 3. g3 {[%clk 01:30:40]} {[%emt 00:00:19]} g6 {[%clk
01:30:45]} {[%emt 00:00:29]} 4. Bg2 {[%clk 01:30:59]} {[%emt 00:00:11]} Bg7
{[%clk 01:31:00]} {[%emt 00:00:16]} 5. d3 {[%clk 01:31:13]} {[%emt 00:00:15]}
Nc6 {[%clk 01:30:50]} {[%emt 00:00:40]} 6. Be3 {[%clk 01:28:12]} {[%emt
00:03:30]} Nf6 {[%clk 01:29:57]} {[%emt 00:01:24]} 7. Nge2 {[%clk 01:27:21]}
{[%emt 00:01:20]} Be6 {[%clk 01:25:58]} {[%emt 00:04:29]} 8. O-O {[%clk
01:23:57]} {[%emt 00:03:54]} O-O {[%clk 01:26:14]} {[%emt 00:00:15]} 9. f4
{[%clk 01:22:58]} {[%emt 00:01:29]} Qb6 {[%clk 01:24:10]} {[%emt 00:02:34]} 10.
f5 {[%clk 01:18:24]} {[%emt 00:05:04]} Bd7 {[%clk 01:22:51]} {[%emt 00:01:49]}
11. Kh1 {[%clk 01:17:17]} {[%emt 00:01:36]} Ng4 {[%clk 01:22:22]} {[%emt
00:00:59]} 12. Bg1 {[%clk 01:09:59]} {[%emt 00:07:49]} Nge5 {[%clk 01:11:13]}
{[%emt 00:11:40]} 13. Rb1 {[%clk 01:07:52]} {[%emt 00:02:36]} Qa5 {[%clk
01:08:49]} {[%emt 00:02:53]} 14. h3 {[%clk 00:57:10]} {[%emt 00:11:12]} Rac8
{[%clk 01:04:13]} {[%emt 00:05:07]} 15. Be3 {[%clk 00:55:24]} {[%emt 00:02:16]}
b5 {[%clk 01:00:40]} {[%emt 00:04:03]} 16. a3 {[%clk 00:51:04]} {[%emt
00:04:50]} Rfd8 {[%clk 00:50:44]} {[%emt 00:10:25]} 17. Qc1 {[%clk 00:47:15]}
{[%emt 00:04:19]} Be8 {[%clk 00:45:46]} {[%emt 00:05:29]} 18. Bg5 {[%clk
00:36:26]} {[%emt 00:11:17]} Rd7 {[%clk 00:35:03]} {[%emt 00:11:14]} 19. f6
{[%clk 00:35:43]} {[%emt 00:01:13]} exf6 {[%clk 00:32:28]} {[%emt 00:03:05]} 20.
Bxf6 {[%clk 00:36:06]} {[%emt 00:00:07]} Bxf6 {[%clk 00:26:27]} {[%emt
00:06:32]} 21. Rxf6 {[%clk 00:36:30]} {[%emt 00:00:05]} Ne7 {[%clk 00:26:16]}
{[%emt 00:00:40]} 22. h4 {[%clk 00:33:29]} {[%emt 00:03:31]} Ng4 {[%clk
00:21:28]} {[%emt 00:05:19]} 23. Rf4 {[%clk 00:32:05]} {[%emt 00:01:52]} h5
{[%clk 00:21:11]} {[%emt 00:00:49]} 24. Bh3 {[%clk 00:32:00]} {[%emt 00:00:34]}
f5 {[%clk 00:21:23]} {[%emt 00:00:18]} 25. Bxg4 {[%clk 00:28:04]} {[%emt
00:04:27]} hxg4 {[%clk 00:19:54]} {[%emt 00:02:00]} 26. Rf2 {[%clk 00:25:50]}
{[%emt 00:02:41]} b4 {[%clk 00:17:37]} {[%emt 00:02:49]} 27. Na2 {[%clk
00:22:56]} {[%emt 00:03:25]} Bf7 {[%clk 00:16:19]} {[%emt 00:01:47]} 28. c4
{[%clk 00:22:00]} {[%emt 00:01:26]} Kg7 {[%clk 00:14:27]} {[%emt 00:02:23]} 29.
Qg5 {[%clk 00:19:34]} {[%emt 00:02:54]} fxe4 {[%clk 00:12:03]} {[%emt
00:02:55]} 30. Qf6+ {[%clk 00:19:27]} {[%emt 00:00:37]} Kh6 {[%clk 00:11:17]}
{[%emt 00:01:17]} 31. Qxf7 {[%clk 00:19:09]} {[%emt 00:00:47]} Qd8 {[%clk
00:09:15]} {[%emt 00:02:33]} 32. Qf4+ {[%clk 00:19:15]} {[%emt 00:00:23]} Kh7
{[%clk 00:08:39]} {[%emt 00:01:04]} 33. dxe4 {[%clk 00:18:28]} {[%emt
00:01:19]} Qg8 {[%clk 00:07:49]} {[%emt 00:01:20]} 34. Qxg4 {[%clk 00:17:49]}
{[%emt 00:01:09]} Qxc4 {[%clk 00:06:38]} {[%emt 00:01:41]} 35. Qxd7 {[%clk
00:17:00]} {[%emt 00:01:19]} Qxe4+ {[%clk 00:07:01]} {[%emt 00:00:07]} 36. Kh2
{[%clk 00:17:23]} {[%emt 00:00:06]} Qxb1 {[%clk 00:07:02]} {[%emt 00:00:30]} 37.
Qxe7+ {[%clk 00:17:41]} {[%emt 00:00:12]} Kh8 {[%clk 00:07:04]} {[%emt
00:00:28]} 38. Nf4 {[%clk 00:16:48]} {[%emt 00:01:23]} Qxa2 {[%clk 00:06:02]}
{[%emt 00:01:32]} 39. Nxg6+ {[%clk 00:17:03]} {[%emt 00:00:14]} Kg8 {[%clk
00:06:21]} {[%emt 00:00:12]} 40. Qf6 {[%clk 00:16:03]} {[%emt 00:01:29]} Kh7
{[%clk 00:03:55]} {[%emt 00:02:56]} 41. Nf8+ {[%clk 00:16:14]} {[%emt
00:00:20]} Rxf8 {[%clk 00:03:31]} {[%emt 00:00:54]} 42. Qxf8 {[%clk 00:16:39]}
{[%emt 00:00:05]} Qe6 {[%clk 00:03:16]} {[%emt 00:00:41]} 43. Qf5+ {[%clk
00:16:39]} {[%emt 00:00:34]} Qxf5 {[%clk 00:03:29]} {[%emt 00:00:16]} 44. Rxf5
{[%clk 00:17:06]} {[%emt 00:00:03]} bxa3 {[%clk 00:03:50]} {[%emt 00:00:09]} 45.
bxa3 {[%clk 00:17:31]} {[%emt 00:00:05]} Kg6 {[%clk 00:04:01]} {[%emt
00:00:19]} 46. Rd5 {[%clk 00:17:52]} {[%emt 00:00:09]} c4 {[%clk 00:04:22]}
{[%emt 00:00:09]} 47. Rxd6+ {[%clk 00:18:13]} {[%emt 00:00:09]} Kf5 {[%clk
00:04:44]} {[%emt 00:00:09]} 48. Rc6 {[%clk 00:18:35]} {[%emt 00:00:07]} a5
{[%clk 00:04:51]} {[%emt 00:00:24]} 49. Rxc4 {[%clk 00:19:00]} {[%emt
00:00:04]} a4 {[%clk 00:05:15]} {[%emt 00:00:06]} 50. Rxa4 {[%clk 00:19:19]}
{[%emt 00:00:11]} Kg6 {[%emt 00:00:05]} 51. Ra5 {[%emt 00:00:10]} Kh6 {[%clk
00:05:21]} {[%emt 00:00:08]} 52. Kh3 {[%clk 00:19:38]} {[%emt 00:00:12]} Kg6
{[%clk 00:05:43]} {[%emt 00:00:08]} 53. Kg4 {[%clk 00:19:59]} {[%emt 00:00:08]}
1-0